[Event "Late-Titled-Tuesday-Blitz-January-23-2024"]
[Site "Chess.com"]
[Date "2024.01.23"]
[Round "8"]
[White "Zhigalko_Sergei"]
[Black "KNVB"]
[Result "0-1"]
[WhiteElo "2953"]
[BlackElo "2783"]
[TimeControl "180+1"]
[EndTime "15:26:35 PST"]
[Termination "KNVB won on time"]

1. e4 {[%clk 0:02:55.8]} 1... b6 {[%clk 0:02:57.6]} 2. d4 {[%clk 0:02:54.9]}
2... Bb7 {[%clk 0:02:57.2]} 3. Bd3 {[%clk 0:02:55.6]} 3... e6 {[%clk 0:02:57.6]}
4. Nf3 {[%clk 0:02:56.1]} 4... d5 {[%clk 0:02:57.7]} 5. e5 {[%clk 0:02:56.2]}
5... Ba6 {[%clk 0:02:58.3]} 6. Bxa6 {[%clk 0:02:51.8]} 6... Nxa6 {[%clk
0:02:59.2]} 7. c4 {[%clk 0:02:30.8]} 7... Nb4 {[%clk 0:02:59.5]} 8. a3 {[%clk
0:02:27]} 8... Nc6 {[%clk 0:02:59.9]} 9. cxd5 {[%clk 0:02:15.6]} 9... Qxd5
{[%clk 0:03:00.8]} 10. Nc3 {[%clk 0:02:15.5]} 10... Qd7 {[%clk 0:03:01.6]} 11.
O-O {[%clk 0:02:05.2]} 11... Nge7 {[%clk 0:03:01.5]} 12. Be3 {[%clk 0:02:02.7]}
12... Nd5 {[%clk 0:02:44.9]} 13. Nxd5 {[%clk 0:01:53.6]} 13... Qxd5 {[%clk
0:02:45.8]} 14. Rc1 {[%clk 0:01:52.4]} 14... Qd7 {[%clk 0:02:38.8]} 15. Qc2
{[%clk 0:00:59.9]} 15... Ne7 {[%clk 0:02:38.9]} 16. Qxc7 {[%clk 0:00:58.2]}
16... Qxc7 {[%clk 0:02:39.2]} 17. Rxc7 {[%clk 0:00:58.9]} 17... Nd5 {[%clk
0:02:40]} 18. Rc2 {[%clk 0:00:49.5]} 18... h6 {[%clk 0:02:30.4]} 19. Rfc1 {[%clk
0:00:49.4]} 19... Kd7 {[%clk 0:02:28.9]} 20. Kf1 {[%clk 0:00:40.6]} 20... Be7
{[%clk 0:02:25.7]} 21. Ke2 {[%clk 0:00:40.6]} 21... Rhc8 {[%clk 0:02:21]} 22.
Rxc8 {[%clk 0:00:37.8]} 22... Rxc8 {[%clk 0:02:21.9]} 23. Rxc8 {[%clk 0:00:38]}
23... Kxc8 {[%clk 0:02:22.8]} 24. Kd3 {[%clk 0:00:38.2]} 24... h5 {[%clk
0:02:13.4]} 25. Bg5 {[%clk 0:00:27.5]} 25... Bf8 {[%clk 0:02:09]} 26. Bd2 {[%clk
0:00:24.2]} 26... Kd7 {[%clk 0:01:52.7]} 27. Ng5 {[%clk 0:00:23.4]} 27... Ke8
{[%clk 0:01:53]} 28. Ne4 {[%clk 0:00:19.8]} 28... Kd7 {[%clk 0:01:53.3]} 29. Ng5
{[%clk 0:00:17.5]} 29... Ke8 {[%clk 0:01:53.7]} 30. f3 {[%clk 0:00:18]} 30...
Be7 {[%clk 0:01:53.8]} 31. Ne4 {[%clk 0:00:18.2]} 31... Kd7 {[%clk 0:01:54.3]}
32. g4 {[%clk 0:00:16.3]} 32... g6 {[%clk 0:01:52.4]} 33. gxh5 {[%clk
0:00:10.5]} 33... gxh5 {[%clk 0:01:53.3]} 34. Ng3 {[%clk 0:00:07.8]} 34... h4
{[%clk 0:01:49.4]} 35. Ne2 {[%clk 0:00:07.4]} 35... b5 {[%clk 0:01:23.5]} 36.
Nf4 {[%clk 0:00:05.7]} 36... Kc6 {[%clk 0:01:12.7]} 37. Ke4 {[%clk 0:00:05.9]}
37... Nxf4 {[%clk 0:01:06]} 38. Bxf4 {[%clk 0:00:06.8]} 38... a5 {[%clk
0:01:06.4]} 39. h3 {[%clk 0:00:06.6]} 39... a4 {[%clk 0:01:06.1]} 40. Bd2 {[%clk
0:00:06.6]} 40... Bd8 {[%clk 0:01:03.1]} 41. Be1 {[%clk 0:00:06.7]} 41... Bg5
{[%clk 0:01:02.3]} 42. f4 {[%clk 0:00:06.6]} 42... Be7 {[%clk 0:01:02.1]} 43.
Bd2 {[%clk 0:00:06.2]} 43... f5+ {[%clk 0:00:38.5]} 44. exf6 {[%clk 0:00:04.2]}
44... Bxf6 {[%clk 0:00:39.1]} 45. Be1 {[%clk 0:00:04.2]} 45... Kd6 {[%clk
0:00:31.4]} 46. Bb4+ {[%clk 0:00:04.8]} 46... Kc6 {[%clk 0:00:31.8]} 47. Bf8
{[%clk 0:00:05.4]} 47... Kd7 {[%clk 0:00:09.7]} 48. Bh6 {[%clk 0:00:05.6]} 48...
Be7 {[%clk 0:00:05.6]} 49. Bg5 {[%clk 0:00:05.2]} 49... Bd6 {[%clk 0:00:02.5]}
50. Bxh4 {[%clk 0:00:05.5]} 50... b4 {[%clk 0:00:03.4]} 51. axb4 {[%clk
0:00:05.6]} 51... Bxb4 {[%clk 0:00:04.3]} 52. Bf2 {[%clk 0:00:04.5]} 52... Bc3
{[%clk 0:00:03.4]} 53. Kd3 {[%clk 0:00:02.4]} 53... Bxb2 {[%clk 0:00:03.2]} 54.
Kc4 {[%clk 0:00:02.9]} 54... Bc1 {[%clk 0:00:02.2]} 55. Bg3 {[%clk 0:00:02.7]}
55... Ke7 {[%clk 0:00:02.3]} 56. h4 {[%clk 0:00:02.6]} 56... Kf6 {[%clk
0:00:02.1]} 57. h5 {[%clk 0:00:03]} 57... Kf5 {[%clk 0:00:02.3]} 58. h6 {[%clk
0:00:03.1]} 58... Kg6 {[%clk 0:00:02.6]} 59. f5+ {[%clk 0:00:03.2]} 59... exf5
{[%clk 0:00:02.3]} 60. d5 {[%clk 0:00:03.5]} 60... f4 {[%clk 0:00:02.6]} 61. Bh4
{[%clk 0:00:02.7]} 61... f3 {[%clk 0:00:02.7]} 62. d6 {[%clk 0:00:02.8]} 62...
Bg5 {[%clk 0:00:02]} 63. Bxg5 {[%clk 0:00:02.4]} 63... f2 {[%clk 0:00:02.4]} 64.
d7 {[%clk 0:00:02.2]} 64... f1=Q+ {[%clk 0:00:02.9]} 65. Kd5 {[%clk 0:00:02.4]}
65... Qd3+ {[%clk 0:00:02.7]} 66. Ke6 {[%clk 0:00:02.4]} 66... Kxg5 {[%clk
0:00:02.2]} 67. h7 {[%clk 0:00:03.3]} 67... Qf5+ {[%clk 0:00:01.9]} 68. Kd6
{[%clk 0:00:03.7]} 68... Qg6+ {[%clk 0:00:02]} 69. Kc7 {[%clk 0:00:04]} 69...
Qxh7 {[%clk 0:00:02.6]} 70. Kc6 {[%clk 0:00:03.9]} 70... Qxd7+ {[%clk
0:00:03.3]} 71. Kxd7 {[%clk 0:00:04.8]} 71... a3 {[%clk 0:00:04]} 72. Kc6 {[%clk
0:00:05.7]} 72... a2 {[%clk 0:00:04.9]} 73. Kb5 {[%clk 0:00:06.6]} 73... a1=Q
{[%clk 0:00:05.8]} 74. Kb4 {[%clk 0:00:07.4]} 74... Qf6 {[%clk 0:00:06.7]} 0-1

[Event "Late-Titled-Tuesday-Blitz-January-23-2024"]
[Site "Chess.com"]
[Date "2024.01.23"]
[Round "8"]
[White "emeli_chess"]
[Black "MyDream003"]
[Result "0-1"]
[WhiteElo "2479"]
[BlackElo "2837"]
[TimeControl "180+1"]
[EndTime "15:26:53 PST"]
[Termination "MyDream003 won on time"]

1. d4 {[%clk 0:03:00.9]} 1... d5 {[%clk 0:02:56.6]} 2. c4 {[%clk 0:03:00.9]}
2... e6 {[%clk 0:02:52.7]} 3. Nc3 {[%clk 0:03:01]} 3... Nf6 {[%clk 0:02:52.6]}
4. cxd5 {[%clk 0:03:00.9]} 4... exd5 {[%clk 0:02:52.9]} 5. Bg5 {[%clk 0:03:01]}
5... Be7 {[%clk 0:02:53.2]} 6. e3 {[%clk 0:03:00.9]} 6... O-O {[%clk 0:02:53.2]}
7. Bd3 {[%clk 0:03:00.9]} 7... c6 {[%clk 0:02:53.4]} 8. Qc2 {[%clk 0:03:00.5]}
8... Nbd7 {[%clk 0:02:53.3]} 9. Nf3 {[%clk 0:03:00.8]} 9... Re8 {[%clk
0:02:53.4]} 10. O-O {[%clk 0:03:00.8]} 10... Nf8 {[%clk 0:02:53.6]} 11. h3
{[%clk 0:03:00.5]} 11... Ng6 {[%clk 0:02:52]} 12. Ne5 {[%clk 0:03:00.3]} 12...
Nd7 {[%clk 0:02:43.1]} 13. Bxe7 {[%clk 0:02:53.9]} 13... Qxe7 {[%clk 0:02:44]}
14. Nxg6 {[%clk 0:02:38.1]} 14... hxg6 {[%clk 0:02:43.6]} 15. Rfe1 {[%clk
0:02:29]} 15... Nf6 {[%clk 0:02:43.5]} 16. e4 {[%clk 0:02:24.9]} 16... dxe4
{[%clk 0:02:42.9]} 17. Nxe4 {[%clk 0:02:24.8]} 17... Nxe4 {[%clk 0:02:41.8]} 18.
Bxe4 {[%clk 0:02:20.5]} 18... Be6 {[%clk 0:02:40.1]} 19. d5 {[%clk 0:02:01]}
19... Bxd5 {[%clk 0:02:35.6]} 20. Bxd5 {[%clk 0:02:00.9]} 20... Qxe1+ {[%clk
0:02:36.5]} 21. Rxe1 {[%clk 0:02:00.3]} 21... Rxe1+ {[%clk 0:02:37.4]} 22. Kh2
{[%clk 0:02:00.5]} 22... cxd5 {[%clk 0:02:38.3]} 23. Qd2 {[%clk 0:01:59.6]}
23... Re5 {[%clk 0:02:26.7]} 24. f4 {[%clk 0:01:56.4]} 24... Re7 {[%clk
0:02:21.9]} 25. Qxd5 {[%clk 0:01:54.6]} 25... Rc8 {[%clk 0:02:21.7]} 26. f5
{[%clk 0:01:47.8]} 26... gxf5 {[%clk 0:02:21]} 27. Qxf5 {[%clk 0:01:47.3]} 27...
Rce8 {[%clk 0:02:17.5]} 28. a4 {[%clk 0:01:44.7]} 28... a6 {[%clk 0:02:17.9]}
29. b4 {[%clk 0:01:39.7]} 29... Rd8 {[%clk 0:02:16.8]} 30. b5 {[%clk 0:01:37.7]}
30... axb5 {[%clk 0:02:14.8]} 31. Qxb5 {[%clk 0:01:31.7]} 31... Rd2 {[%clk
0:02:11.7]} 32. Qb4 {[%clk 0:01:30.9]} 32... Red7 {[%clk 0:02:07.9]} 33. a5
{[%clk 0:01:27.9]} 33... Ra2 {[%clk 0:02:05.2]} 34. Qb5 {[%clk 0:01:25.7]} 34...
Rad2 {[%clk 0:01:59.7]} 35. Qb4 {[%clk 0:01:12.5]} 35... g6 {[%clk 0:01:59.6]}
36. Qc3 {[%clk 0:01:07.7]} 36... R2d6 {[%clk 0:01:56.7]} 37. Qc8+ {[%clk
0:01:04.8]} 37... Kh7 {[%clk 0:01:56.2]} 38. Qc3 {[%clk 0:01:02.9]} 38... Ra6
{[%clk 0:01:52.7]} 39. Qb4 {[%clk 0:01:00.9]} 39... Rad6 {[%clk 0:01:51.9]} 40.
Qc3 {[%clk 0:01:00.4]} 40... Rd5 {[%clk 0:01:51.7]} 41. Qb4 {[%clk 0:00:59.9]}
41... Re5 {[%clk 0:01:51.1]} 42. Qh4+ {[%clk 0:00:58.6]} 42... Kg7 {[%clk
0:01:50.6]} 43. Qb4 {[%clk 0:00:56.4]} 43... Rdd5 {[%clk 0:01:38.5]} 44. Qxb7
{[%clk 0:00:56.1]} 44... Rxa5 {[%clk 0:01:39]} 45. Qb2 {[%clk 0:00:56]} 45...
Kh7 {[%clk 0:01:38.8]} 46. Qf2 {[%clk 0:00:54.7]} 46... Rf5 {[%clk 0:01:38.2]}
47. Qh4+ {[%clk 0:00:54.8]} 47... Kg7 {[%clk 0:01:37.9]} 48. Qd4+ {[%clk
0:00:53.9]} 48... Rfe5 {[%clk 0:01:37.2]} 49. Qc3 {[%clk 0:00:53]} 49... Rd5
{[%clk 0:01:38.1]} 50. Qb2 {[%clk 0:00:52.1]} 50... Kh7 {[%clk 0:01:34.9]} 51.
Qb4 {[%clk 0:00:51.2]} 51... Re2 {[%clk 0:01:30.9]} 52. Qh4+ {[%clk 0:00:50.3]}
52... Kg7 {[%clk 0:01:30.6]} 53. Qg3 {[%clk 0:00:47.3]} 53... Rdd2 {[%clk
0:01:30.4]} 54. Qc3+ {[%clk 0:00:47.1]} 54... Kh7 {[%clk 0:01:30.6]} 55. h4
{[%clk 0:00:42.8]} 55... Rxg2+ {[%clk 0:01:30.1]} 56. Kh3 {[%clk 0:00:40.5]}
56... Rh2+ {[%clk 0:01:30.2]} 57. Kg3 {[%clk 0:00:40.1]} 57... Rdg2+ {[%clk
0:01:31.1]} 58. Kf4 {[%clk 0:00:40.1]} 58... Rxh4+ {[%clk 0:01:30.7]} 59. Ke5
{[%clk 0:00:40.3]} 59... Rg5+ {[%clk 0:01:25.5]} 60. Kf6 {[%clk 0:00:38.9]}
60... Rf5+ {[%clk 0:01:25.9]} 61. Ke7 {[%clk 0:00:39]} 61... Re4+ {[%clk
0:01:26.8]} 62. Kf8 {[%clk 0:00:38.9]} 62... Kh6 {[%clk 0:01:26.8]} 63. Qh3+
{[%clk 0:00:37.4]} 63... Kg5 {[%clk 0:01:26.6]} 64. Kg7 {[%clk 0:00:37.2]} 64...
Kf4 {[%clk 0:01:23.5]} 65. Qh2+ {[%clk 0:00:35.9]} 65... Kf3 {[%clk 0:01:24]}
66. Qh1+ {[%clk 0:00:35.3]} 66... Kf4 {[%clk 0:01:18.7]} 67. Qh2+ {[%clk
0:00:35.2]} 67... Ke3 {[%clk 0:01:17.2]} 68. Qg1+ {[%clk 0:00:29.9]} 68... Ke2
{[%clk 0:01:15.5]} 69. Qg2+ {[%clk 0:00:28.7]} 69... Kd3 {[%clk 0:01:15.9]} 70.
Qb2 {[%clk 0:00:26.3]} 70... Rff4 {[%clk 0:01:08.8]} 71. Qb3+ {[%clk 0:00:25]}
71... Ke2 {[%clk 0:01:08.8]} 72. Qc2+ {[%clk 0:00:25.2]} 72... Kf3 {[%clk
0:01:09.4]} 73. Qd3+ {[%clk 0:00:24.6]} 73... Kg4 {[%clk 0:01:09.4]} 74. Qd1+
{[%clk 0:00:23.6]} 74... Rf3 {[%clk 0:01:08.5]} 75. Qg1+ {[%clk 0:00:22.8]}
75... Kf4 {[%clk 0:01:03.1]} 76. Kxf7 {[%clk 0:00:22]} 76... g5 {[%clk
0:01:03.7]} 77. Kg6 {[%clk 0:00:20.7]} 77... g4 {[%clk 0:01:04.1]} 78. Qc1+
{[%clk 0:00:13.7]} 78... Ree3 {[%clk 0:01:02.4]} 79. Kf6 {[%clk 0:00:10.7]}
79... Kg3+ {[%clk 0:00:59.6]} 80. Kg5 {[%clk 0:00:10.8]} 80... Re5+ {[%clk
0:00:59.9]} 81. Kg6 {[%clk 0:00:11]} 81... Kg2 {[%clk 0:00:55.6]} 82. Qc2+
{[%clk 0:00:10]} 82... Kg3 {[%clk 0:00:54.2]} 83. Qc7 {[%clk 0:00:09.6]} 83...
Re3 {[%clk 0:00:54.3]} 84. Qc1 {[%clk 0:00:07.1]} 84... Re6+ {[%clk 0:00:52.1]}
85. Kf7 {[%clk 0:00:06.1]} 85... Kg2 {[%clk 0:00:50.4]} 86. Qd2+ {[%clk
0:00:04.9]} 86... Re2 {[%clk 0:00:50.7]} 87. Qf4 {[%clk 0:00:04.8]} 87... R6e4
{[%clk 0:00:50]} 88. Qf5 {[%clk 0:00:03.7]} 88... g3 {[%clk 0:00:50.4]} 89. Kg6
{[%clk 0:00:03]} 89... Kg1 {[%clk 0:00:49.4]} 90. Qf3 {[%clk 0:00:02.4]} 90...
g2 {[%clk 0:00:49.2]} 0-1

[Event "Late-Titled-Tuesday-Blitz-January-23-2024"]
[Site "Chess.com"]
[Date "2024.01.23"]
[Round "8"]
[White "Hirna2005"]
[Black "HajiyevKanan"]
[Result "0-1"]
[WhiteElo "2312"]
[BlackElo "2578"]
[TimeControl "180+1"]
[EndTime "15:27:01 PST"]
[Termination "HajiyevKanan won by resignation"]

1. e4 {[%clk 0:03:00.9]} 1... c6 {[%clk 0:02:59]} 2. Nc3 {[%clk 0:03:00.2]} 2...
d5 {[%clk 0:02:59.9]} 3. Nf3 {[%clk 0:02:59]} 3... a6 {[%clk 0:03:00.6]} 4. d4
{[%clk 0:02:56.4]} 4... Bg4 {[%clk 0:03:00.5]} 5. Be2 {[%clk 0:02:55.5]} 5... e6
{[%clk 0:03:00.5]} 6. h3 {[%clk 0:02:54.4]} 6... Bh5 {[%clk 0:03:00.1]} 7. O-O
{[%clk 0:02:53.7]} 7... Nf6 {[%clk 0:03:00]} 8. e5 {[%clk 0:02:52.9]} 8... Nfd7
{[%clk 0:03:00.3]} 9. Bg5 {[%clk 0:02:38.9]} 9... Qc7 {[%clk 0:02:57.1]} 10. Nb1
{[%clk 0:02:16.9]} 10... c5 {[%clk 0:02:55.6]} 11. c3 {[%clk 0:02:17.3]} 11...
Nc6 {[%clk 0:02:55.2]} 12. Be3 {[%clk 0:02:14.5]} 12... cxd4 {[%clk 0:02:50.7]}
13. cxd4 {[%clk 0:02:14.1]} 13... Be7 {[%clk 0:02:47.1]} 14. Nc3 {[%clk
0:02:13.7]} 14... O-O {[%clk 0:02:47]} 15. Rc1 {[%clk 0:02:12.8]} 15... Rac8
{[%clk 0:02:40.1]} 16. Qd2 {[%clk 0:02:05.7]} 16... b5 {[%clk 0:02:27.1]} 17. g4
{[%clk 0:01:58.2]} 17... Bg6 {[%clk 0:02:23.3]} 18. h4 {[%clk 0:01:54.5]} 18...
h5 {[%clk 0:02:22.2]} 19. gxh5 {[%clk 0:01:46.6]} 19... Bxh5 {[%clk 0:02:21.7]}
20. Ng5 {[%clk 0:01:46.4]} 20... Bxe2 {[%clk 0:02:06]} 21. Qxe2 {[%clk
0:01:46.5]} 21... Bxg5 {[%clk 0:01:59.1]} 22. hxg5 {[%clk 0:01:44.8]} 22... g6
{[%clk 0:01:58.1]} 23. Kg2 {[%clk 0:01:43.1]} 23... Kg7 {[%clk 0:01:56.6]} 24.
Rh1 {[%clk 0:01:42.9]} 24... Rh8 {[%clk 0:01:56.3]} 25. Qf3 {[%clk 0:01:40.7]}
25... Rxh1 {[%clk 0:01:49.1]} 26. Rxh1 {[%clk 0:01:37.7]} 26... Qd8 {[%clk
0:01:39]} 27. Ne2 {[%clk 0:01:16]} 27... Ne7 {[%clk 0:01:30.9]} 28. Ng3 {[%clk
0:01:10.4]} 28... Nf5 {[%clk 0:01:04.3]} 29. Nxf5+ {[%clk 0:01:06.3]} 29... exf5
{[%clk 0:00:43.2]} 30. Qxd5 {[%clk 0:01:04.2]} 30... Nb6 {[%clk 0:00:43.6]} 31.
Qf3 {[%clk 0:00:58.6]} 31... Qd5 {[%clk 0:00:42.5]} 32. Rc1 {[%clk 0:00:53]}
32... Rxc1 {[%clk 0:00:37.3]} 33. Qxd5 {[%clk 0:00:51.1]} 33... Nxd5 {[%clk
0:00:33.5]} 34. Bxc1 {[%clk 0:00:51.1]} 34... Kf8 {[%clk 0:00:33.4]} 35. Kf3
{[%clk 0:00:48.4]} 35... Ke7 {[%clk 0:00:33.9]} 36. Ke2 {[%clk 0:00:47.1]} 36...
Ke6 {[%clk 0:00:33.7]} 37. a3 {[%clk 0:00:46.9]} 37... Nb6 {[%clk 0:00:31.6]}
38. Kd3 {[%clk 0:00:42.8]} 38... Kd5 {[%clk 0:00:32.1]} 39. Bd2 {[%clk
0:00:41.3]} 39... Nc4 {[%clk 0:00:31.5]} 40. Bc3 {[%clk 0:00:41.5]} 40... Nb6
{[%clk 0:00:31.1]} 41. f3 {[%clk 0:00:40.4]} 41... Nd7 {[%clk 0:00:31.1]} 42. b3
{[%clk 0:00:39.5]} 42... Nf8 {[%clk 0:00:30.3]} 43. a4 {[%clk 0:00:26.4]} 43...
Ne6 {[%clk 0:00:25.4]} 44. axb5 {[%clk 0:00:24.6]} 44... axb5 {[%clk 0:00:26.3]}
45. Bd2 {[%clk 0:00:21.2]} 45... Nxd4 {[%clk 0:00:25.6]} 46. b4 {[%clk
0:00:20.4]} 46... Nc6 {[%clk 0:00:25.3]} 47. f4 {[%clk 0:00:20.1]} 47... Nd4
{[%clk 0:00:24.7]} 48. Be3 {[%clk 0:00:20]} 48... Ne6 {[%clk 0:00:24.1]} 49. Bd2
{[%clk 0:00:18.8]} 49... Nd8 {[%clk 0:00:23.4]} 50. Be3 {[%clk 0:00:18.9]} 50...
Nc6 {[%clk 0:00:23.6]} 51. Bd2 {[%clk 0:00:19.3]} 51... Na7 {[%clk 0:00:18.6]}
52. Be3 {[%clk 0:00:19.1]} 52... Nc8 {[%clk 0:00:19.2]} 53. Bc1 {[%clk 0:00:18]}
53... Nb6 {[%clk 0:00:18.9]} 54. Bd2 {[%clk 0:00:16.6]} 54... Nc4 {[%clk
0:00:17.7]} 55. Bc3 {[%clk 0:00:17]} 55... Na3 {[%clk 0:00:14.4]} 56. Bd4 {[%clk
0:00:16.9]} 56... Nc2 {[%clk 0:00:11.1]} 57. Bc5 {[%clk 0:00:17.1]} 57... Ne1+
{[%clk 0:00:08]} 58. Ke2 {[%clk 0:00:17.3]} 58... Nc2 {[%clk 0:00:06]} 59. Kd3
{[%clk 0:00:17.5]} 59... Na3 {[%clk 0:00:06.5]} 60. Bd4 {[%clk 0:00:16.9]} 60...
Nc4 {[%clk 0:00:05.7]} 61. Bc5 {[%clk 0:00:17]} 61... Kc6 {[%clk 0:00:05.1]} 62.
Kd4 {[%clk 0:00:17.3]} 62... Nd2 {[%clk 0:00:04.9]} 63. Be7 {[%clk 0:00:16.5]}
63... Nf3+ {[%clk 0:00:04]} 64. Ke3 {[%clk 0:00:16.8]} 64... Ne1 {[%clk
0:00:04]} 65. Kd2 {[%clk 0:00:16.2]} 65... Ng2 {[%clk 0:00:03.7]} 66. Kd3 {[%clk
0:00:14.7]} 66... Nxf4+ {[%clk 0:00:03.3]} 67. Kd4 {[%clk 0:00:15]} 67... Ne6+
{[%clk 0:00:03.1]} 68. Ke3 {[%clk 0:00:15.4]} 68... Kd5 {[%clk 0:00:03.8]} 69.
Bd6 {[%clk 0:00:15.4]} 69... Kc4 {[%clk 0:00:04.5]} 70. Kf3 {[%clk 0:00:14.7]}
70... Kd3 {[%clk 0:00:04.9]} 71. Kf2 {[%clk 0:00:14.4]} 71... Ke4 {[%clk
0:00:05.5]} 72. Ke2 {[%clk 0:00:14.8]} 72... Nd4+ {[%clk 0:00:05.9]} 73. Kd2
{[%clk 0:00:15.1]} 73... Ne6 {[%clk 0:00:06.3]} 74. Kc3 {[%clk 0:00:15.4]} 74...
Nxg5 {[%clk 0:00:06.7]} 75. e6 {[%clk 0:00:14.8]} 75... Nxe6 {[%clk 0:00:07.3]}
76. Be7 {[%clk 0:00:13.8]} 76... Kd5 {[%clk 0:00:07.6]} 77. Kd3 {[%clk
0:00:14.1]} 77... f4 {[%clk 0:00:08]} 78. Ke2 {[%clk 0:00:14.2]} 78... g5 {[%clk
0:00:08.7]} 79. Kf3 {[%clk 0:00:15]} 79... f5 {[%clk 0:00:09.1]} 80. Bd8 {[%clk
0:00:13.7]} 80... g4+ {[%clk 0:00:09.5]} 81. Kf2 {[%clk 0:00:13.6]} 81... Nd4
{[%clk 0:00:09.6]} 82. Bb6 {[%clk 0:00:13.1]} 82... Ke4 {[%clk 0:00:10.1]} 83.
Bc5 {[%clk 0:00:12.9]} 83... Ne6 {[%clk 0:00:10.2]} 84. Bb6 {[%clk 0:00:12.9]}
84... Ng5 {[%clk 0:00:10.4]} 85. Bc5 {[%clk 0:00:12.6]} 85... f3 {[%clk
0:00:10.9]} 86. Kg3 {[%clk 0:00:13.1]} 86... Ne6 {[%clk 0:00:11.3]} 87. Bf2
{[%clk 0:00:12.8]} 87... Nd4 {[%clk 0:00:10.3]} 88. Kh4 {[%clk 0:00:12.2]} 88...
Nc2 {[%clk 0:00:10.4]} 89. Kg3 {[%clk 0:00:12.5]} 89... Nxb4 {[%clk 0:00:10.5]}
90. Kh4 {[%clk 0:00:12.6]} 90... Nd3 {[%clk 0:00:11.3]} 91. Kg3 {[%clk
0:00:13.5]} 91... b4 {[%clk 0:00:11.2]} 92. Bc5 {[%clk 0:00:13]} 92... Nxc5
{[%clk 0:00:10.9]} 0-1